fUST/lending_fUST_20240817
["ID","MTS","AMOUNT","RATE_DAILY","PERIOD"]
[335146098,1723890702788,-1438.68,0.00026575,2]
[335146099,1723890702799,-2248.55,0.00026575,2]
[335146100,1723890702811,-769.77,0.00026575,2]
[335146101,1723890702820,-657.64,0.00026575,2]
[335146102,1723890702830,-590.2,0.00026575,2]
[335146103,1723890702840,-788.03,0.00026575,2]
[335146104,1723890702850,-2904.2,0.00026575,2]
[335146105,1723890702859,-500.0,0.00026575,2]
[335146106,1723890702869,-500.0,0.00026575,2]
[335146107,1723890702878,-500.0,0.00026575,2]
[335146108,1723890702887,-737.6,0.00026575,2]
[335146109,1723890702897,-1067.82,0.00026575,2]
[335146110,1723890702907,-22187.11,0.00026575,2]
[335146111,1723890702917,-6948.85,0.00026575,2]
[335146112,1723890702926,-668.08,0.00026575,2]
[335146113,1723890702935,-1369.92,0.00026575,2]
[335146114,1723890702945,-1067.8,0.00026575,2]
[335146115,1723890702954,-2952.04,0.00026575,2]
[335146116,1723890702964,-1761.64,0.00026575,2]
[335146117,1723890702975,-1088.19,0.00026575,2]
[335146118,1723890702985,-616.8,0.00026575,2]
[335146119,1723890702996,-1664.5,0.00026575,2]
[335146120,1723890703006,-500.0,0.00026575,2]
[335146121,1723890703017,-869.36,0.00026575,2]
[335146122,1723890703027,-1108.77,0.00026575,2]
[335146123,1723890703038,-905.39,0.00026575,2]
[335146124,1723890703052,-500.0,0.00026575,2]
[335146125,1723890703063,-2520.02,0.00026575,2]
[335146126,1723890703072,-569.78,0.00026575,2]
[335146127,1723890703083,-3853.14,0.00026575,2]
[335146128,1723890703094,-2333.05,0.00026575,2]
[335146129,1723890703104,-679.93,0.00026575,2]
[335146130,1723890703116,-500.0,0.00026575,2]
[335146131,1723890703128,-521.59,0.00026575,2]
[335146132,1723890703137,-2770.69,0.00026575,2]
[335146133,1723890703148,-692.79,0.00026575,2]
[335146134,1723890703160,-500.28,0.00026575,2]
[335146135,1723890703171,-500.0,0.00026575,2]
[335146136,1723890703182,-1389.6,0.00026575,2]
[335146137,1723890703193,-500.0,0.00026575,2]
[335146138,1723890703205,-4570.81,0.00026575,2]
[335146139,1723890703216,-531.66,0.00026575,2]
[335146140,1723890703227,-1000.0,0.00026612,2]
[335146141,1723890703237,-1000.0,0.00026618,2]
[335146142,1723890703248,-550.0,0.00026619,2]
[335146143,1723890703259,-1000.0,0.00026627,2]
[335146144,1723890703272,-408.72664788,0.00026636,2]
[335146145,1723890703283,-500.0,0.00026657,2]
[335146146,1723890703293,-1000.0,0.00026685,2]
[335146147,1723890703305,-1000.0,0.00026702,2]
[335146148,1723890703315,-5109.6595553,0.00026704,2]
[335146149,1723890703327,-1000.0,0.00026709,2]
[335146150,1723890703336,-1000.0,0.00026734,2]
[335146151,1723890703348,-1000.0,0.00026758,2]
[335146152,1723890703359,-821.0,0.00026778,2]
[335146153,1723890703370,-821.0,0.00026778,2]
[335146154,1723890703381,-821.0,0.00026788,2]
[335146155,1723890703392,-821.0,0.00026788,2]
[335146156,1723890703402,-821.0,0.00026788,2]
[335146157,1723890703412,-500.0,0.00026811,2]
[335146158,1723890703422,-1000.0,0.00026818,2]
[335146159,1723890703431,-780.69,0.00026819,2]
[335146160,1723890703440,-520.25995937,0.00026842,2]
[335146161,1723890703452,-500.0,0.00026842,2]
[335146162,1723890703461,-500.0,0.00026842,2]
[335146163,1723890703470,-500.0,0.00026842,2]
[335146164,1723890703479,-500.0,0.00026842,2]
[335146165,1723890703489,-500.0,0.00026842,2]
[335146166,1723890703499,-500.0,0.00026842,2]
[335146167,1723890703511,-500.0,0.00026842,2]
[335146168,1723890703521,-507.06149287,0.00026842,2]
[335146169,1723890703531,-500.0,0.00026842,2]
[335146170,1723890703543,-500.0,0.00026842,2]
[335146171,1723890703553,-500.0,0.00026842,2]
[335146172,1723890703563,-500.0,0.00026842,2]
[335146173,1723890703575,-500.0,0.00026842,2]
[335146174,1723890703586,-500.0,0.00026842,2]
[335146175,1723890703597,-500.0,0.00026842,2]
[335146176,1723890703607,-518.12874381,0.00026842,2]
[335146177,1723890703619,-500.0,0.00026842,2]
[335146178,1723890703631,-500.0,0.00026842,2]
[335146179,1723890703641,-500.0,0.00026842,2]
[335146180,1723890703652,-500.0,0.00026842,2]
[335146181,1723890703664,-510.08225344,0.00026842,2]
[335146182,1723890703674,-500.0,0.00026842,2]
[335146183,1723890703686,-500.0,0.00026842,2]
[335146184,1723890703698,-500.0,0.00026842,2]
[335146185,1723890703707,-500.0,0.00026842,2]
[335146186,1723890703717,-500.0,0.00026842,2]
[335146187,1723890703728,-500.0,0.00026842,2]
[335146188,1723890703741,-500.0,0.00026842,2]
[335146189,1723890703751,-500.0,0.00026842,2]
[335146190,1723890703765,-500.0,0.00026842,2]
[335146191,1723890703781,-500.0,0.00026842,2]
[335146192,1723890703797,-500.0,0.00026842,2]
[335146193,1723890703811,-500.0,0.00026842,2]
[335146194,1723890703825,-500.0,0.00026842,2]
[335146195,1723890703838,-495.94265711,0.00026842,2]
[335146196,1723890703853,-500.0,0.00026842,2]
[335146197,1723890703869,-500.0,0.00026842,2]
[335146198,1723890703885,-501.54,0.00026842,2]
[335146199,1723890703902,-500.0,0.00026842,2]
[335146200,1723890703916,-500.0,0.00026842,2]
[335146201,1723890703931,-500.0,0.00026842,2]
[335146202,1723890703946,-500.0,0.00026842,2]
[335146203,1723890703959,-500.0,0.00026842,2]
[335146204,1723890703975,-500.0,0.00026842,2]
[335146205,1723890703988,-500.0,0.00026842,2]
[335146206,1723890704002,-500.0,0.00026842,2]
[335146207,1723890704020,-1683.39,0.00026842,2]
[335146208,1723890704036,-500.0,0.00026842,2]
[335146209,1723890704051,-500.0,0.00026842,2]
[335146210,1723890704067,-500.0,0.00026842,2]
[335146211,1723890704084,-500.0,0.00026842,2]
[335146212,1723890704099,-552.36447716,0.00026842,2]
[335146213,1723890704111,-500.0,0.00026842,2]
[335146214,1723890704125,-500.0,0.00026842,2]
[335146215,1723890704140,-500.0,0.00026842,2]
[335146216,1723890704153,-500.0,0.00026842,2]
[335146217,1723890704165,-500.0,0.00026842,2]
[335146218,1723890704181,-500.0,0.00026842,2]
[335146219,1723890704196,-500.0,0.00026842,2]
[335146220,1723890704209,-500.0,0.00026842,2]
[335146221,1723890704222,-500.0,0.00026842,2]
[335146222,1723890704236,-500.0,0.00026842,2]
[335146223,1723890704249,-500.0,0.00026842,2]
[335146224,1723890704263,-500.0,0.00026842,2]
[335146225,1723890704276,-500.0,0.00026842,2]
[335146226,1723890704289,-500.0,0.00026842,2]
[335146227,1723890704302,-441.85528238,0.00026842,2]
[335146228,1723890704314,-500.0,0.00026842,2]
[335146229,1723890704326,-500.0,0.00026842,2]
[335146230,1723890704338,-500.0,0.00026842,2]
[335146231,1723890704351,-500.0,0.00026842,2]
[335146232,1723890704364,-500.0,0.00026842,2]
[335146233,1723890704376,-208.95110547,0.00026842,2]
[335146234,1723890704390,-510.76971986,0.00026842,2]
[335146235,1723890704403,-500.0,0.00026842,2]
[335146236,1723890704415,-500.0,0.00026842,2]
[335146237,1723890704427,-345.1294237,0.00026842,2]
[335146238,1723890704440,-500.0,0.00026842,2]
[335146239,1723890704453,-500.0,0.00026842,2]
[335146240,1723890704469,-500.0,0.00026842,2]
[335146241,1723890704482,-500.0,0.00026842,2]
[335146242,1723890704495,-500.0,0.00026842,2]
[335146243,1723890704508,-500.0,0.00026842,2]
[335146244,1723890704524,-500.0,0.00026842,2]
[335146245,1723890704536,-500.0,0.00026842,2]
[335146246,1723890704548,-343.84252207,0.00026842,2]
[335146247,1723890704561,-500.0,0.00026842,2]
[335146248,1723890704573,-500.0,0.00026842,2]
[335146249,1723890704586,-500.0,0.00026842,2]
[335146250,1723890704598,-500.0,0.00026842,2]
[335146251,1723890704610,-500.0,0.00026842,2]
[335146252,1723890704622,-500.0,0.00026842,2]
[335146253,1723890704636,-500.0,0.00026842,2]
[335146254,1723890704648,-500.0,0.00026842,2]
[335146255,1723890704660,-571.87881699,0.00026842,2]
[335146256,1723890704671,-500.0,0.00026842,2]
[335146257,1723890704684,-500.0,0.00026842,2]
[335146258,1723890704696,-500.0,0.00026842,2]
[335146259,1723890704708,-500.0,0.00026842,2]
[335146260,1723890704720,-500.0,0.00026842,2]
[335146261,1723890704733,-500.0,0.00026842,2]
[335146262,1723890704745,-500.0,0.00026842,2]
[335146263,1723890704758,-500.0,0.00026842,2]
[335146264,1723890704770,-283.16356539,0.00026842,2]
[335146265,1723890704785,-501.72232733,0.00026842,2]
[335146266,1723890704796,-571.43739277,0.00026842,2]
[335146267,1723890704809,-500.0,0.00026842,2]
[335146268,1723890704821,-192.12092943,0.00026842,2]
[335146269,1723890704833,-642.10457207,0.00026842,2]
[335146270,1723890704845,-500.0,0.00026842,2]
[335146271,1723890704856,-204.81684146,0.00026842,2]
[335146272,1723890704868,-500.0,0.00026842,2]
[335146273,1723890704880,-505.72455061,0.00026842,2]
[335146274,1723890704891,-414.08355454,0.00026842,2]
[335146275,1723890704903,-547.89,0.00026842,2]
[335146276,1723890704914,-500.0,0.00026842,2]
[335146277,1723890704926,-341.93109633,0.00026842,2]
[335146278,1723890704938,-500.0,0.00026842,2]
[335146279,1723890704949,-500.0,0.00026842,2]
[335146280,1723890704962,-500.0,0.00026842,2]
[335146281,1723890704974,-500.0,0.00026842,2]
[335146282,1723890704986,-500.0,0.00026842,2]
[335146283,1723890704999,-500.0,0.00026842,2]
[335146284,1723890705010,-500.0,0.00026842,2]
[335146285,1723890705022,-500.0,0.00026842,2]
[335146286,1723890705033,-500.0,0.00026842,2]
[335146287,1723890705044,-647.57562303,0.00026842,2]
[335146288,1723890705060,-500.0,0.00026842,2]
[335146289,1723890705071,-500.0,0.00026842,2]
[335146290,1723890705083,-500.0,0.00026842,2]
[335146291,1723890705093,-1406.266005,0.00026842,7]
[335146292,1723890705105,-500.0,0.00026842,2]
[335146293,1723890705115,-500.0,0.00026842,2]
[335146294,1723890705126,-500.0,0.00026842,2]
[335146295,1723890705139,-1406.266005,0.00026842,7]
[335146296,1723890705152,-500.0,0.00026842,2]
[335146297,1723890705163,-765.7,0.00026842,2]
[335146298,1723890705175,-500.0,0.00026842,2]
[335146299,1723890705187,-500.0,0.00026842,2]
[335146300,1723890705199,-500.0,0.00026842,2]
[335146301,1723890705210,-500.0,0.00026842,2]
[335146302,1723890705221,-500.0,0.00026842,2]
[335146303,1723890705232,-500.0,0.00026842,2]
[335146304,1723890705243,-526.50289262,0.00026842,2]
[335146305,1723890705254,-500.0,0.00026842,2]
[335146306,1723890705265,-500.0,0.00026842,2]
[335146307,1723890705276,-500.0,0.00026842,2]
[335146308,1723890705289,-500.0,0.00026842,2]
[335146309,1723890705302,-535.90049583,0.00026842,2]
[335146310,1723890705314,-633.9,0.00026842,2]
[335146311,1723890705326,-514.20711209,0.00026842,2]
[335146312,1723890705336,-500.0,0.00026842,2]
[335146313,1723890705348,-500.0,0.00026842,2]
[335146314,1723890705359,-332.71733308,0.00026842,2]
[335146315,1723890705370,-500.0,0.00026842,2]
[335146316,1723890705381,-500.0,0.00026842,2]
[335146317,1723890705393,-500.0,0.00026842,2]
[335146318,1723890705406,-500.0,0.00026842,2]
[335146319,1723890705417,-500.0,0.00026842,2]
[335146320,1723890705428,-500.0,0.00026842,2]
[335146321,1723890705440,-500.0,0.00026842,2]
[335146322,1723890705452,-521.11,0.00026842,2]
[335146323,1723890705463,-500.0,0.00026842,2]
[335146324,1723890705475,-500.0,0.00026842,2]
[335146325,1723890705486,-500.0,0.00026842,2]
[335146326,1723890705497,-519.36264566,0.00026842,2]
[335146327,1723890705508,-500.0,0.00026842,2]
[335146328,1723890705520,-500.0,0.00026842,2]
[335146329,1723890705533,-500.0,0.00026842,2]
[335146330,1723890705546,-503.10713117,0.00026842,2]
[335146331,1723890705557,-500.0,0.00026842,2]
[335146332,1723890705569,-510.40968345,0.00026842,2]
[335146333,1723890705580,-775.16,0.00026842,2]
[335146334,1723890705591,-500.0,0.00026842,2]
[335146335,1723890705601,-571.85044448,0.00026842,2]
[335146336,1723890705612,-411.96198398,0.00026842,2]
[335146337,1723890705624,-500.0,0.00026842,2]
[335146338,1723890705636,-571.1,0.00026842,2]
[335146339,1723890705648,-500.0,0.00026842,2]
[335146340,1723890705661,-514.3189391,0.00026842,2]
[335146341,1723890705674,-500.0,0.00026842,2]
[335146342,1723890705689,-500.0,0.00026842,2]
[335146343,1723890705939,-500.0,0.00026842,2]
[335146344,1723890705954,-668.62,0.00026842,2]
[335146345,1723890705964,-500.0,0.00026842,2]
[335146346,1723890705975,-500.0,0.00026842,2]
[335146347,1723890705985,-500.0,0.00026842,2]
[335146348,1723890705995,-500.0,0.00026842,2]
[335146349,1723890706006,-500.0,0.00026842,2]
[335146350,1723890706017,-731.12,0.00026842,2]
[335146351,1723890706029,-500.0,0.00026842,2]
[335146352,1723890706041,-632.17,0.00026842,2]
[335146353,1723890706055,-500.0,0.00026842,2]
[335146354,1723890706067,-500.0,0.00026842,2]
[335146355,1723890706078,-593.02,0.00026842,2]
[335146356,1723890706090,-500.0,0.00026842,2]
[335146357,1723890706102,-500.0,0.00026842,2]
[335146358,1723890706113,-656.84,0.00026842,2]
[335146359,1723890706124,-500.0,0.00026842,2]
[335146360,1723890706133,-310.17280305,0.00026842,2]
[335146361,1723890706144,-633.28,0.00026842,2]
[335146362,1723890706154,-500.0,0.00026842,2]
[335146363,1723890706164,-500.0,0.00026842,2]
[335146364,1723890706174,-500.0,0.00026842,2]
[335146365,1723890706184,-500.0,0.00026842,2]
[335146366,1723890706193,-521.1,0.00026842,2]
[335146367,1723890706204,-500.0,0.00026842,2]
[335146368,1723890706213,-500.0,0.00026842,2]
[335146369,1723890706223,-500.0,0.00026842,2]
[335146370,1723890706233,-500.0,0.00026842,2]
[335146371,1723890706246,-498.44216107,0.00026842,2]
[335146372,1723890706257,-500.0,0.00026842,2]
[335146373,1723890706268,-500.0,0.00026842,2]
[335146374,1723890706278,-500.0,0.00026842,2]
[335146375,1723890706291,-500.0,0.00026842,2]
[335146376,1723890706302,-500.0,0.00026842,2]
[335146377,1723890706315,-500.0,0.00026842,2]
[335146378,1723890706324,-500.0,0.00026842,2]
[335146379,1723890706334,-500.0,0.00026842,2]
[335146380,1723890706343,-764.51,0.00026842,2]
[335146381,1723890706353,-500.0,0.00026842,2]
[335146382,1723890706363,-500.0,0.00026842,2]
[335146383,1723890706373,-500.0,0.00026842,2]
[335146384,1723890706384,-500.0,0.00026842,2]
[335146385,1723890706394,-500.0,0.00026842,2]
[335146386,1723890706404,-625.26,0.00026842,2]
[335146387,1723890706414,-500.0,0.00026842,2]
[335146388,1723890706423,-625.29,0.00026842,2]
[335146389,1723890706433,-280.15284345,0.00026842,2]
[335146390,1723890706445,-500.0,0.00026842,2]
[335146391,1723890706456,-500.0,0.00026842,2]
[335146392,1723890706464,-500.0,0.00026842,2]
[335146393,1723890706475,-500.0,0.00026842,2]
[335146394,1723890706485,-500.0,0.00026842,2]
[335146395,1723890706496,-500.0,0.00026842,2]
[335146396,1723890706506,-500.0,0.00026842,2]
[335146397,1723890706517,-500.0,0.00026842,2]
[335146398,1723890706527,-500.0,0.00026848,2]
[335146399,1723890706537,-500.0,0.00026848,2]
[335146400,1723890706546,-1302.46,0.00026848,2]
[335146401,1723890706557,-3815.52,0.00026848,2]
[335146402,1723890706567,-1463.19,0.00026848,2]
[335146403,1723890706577,-1313.81,0.00026848,2]
[335146404,1723890706586,-557.32,0.00026848,2]
[335146405,1723890706596,-4587.93,0.00026848,2]
[335146406,1723890706606,-1281.48,0.00026848,2]
[335146407,1723890706615,-1296.99,0.00026848,2]
[335146408,1723890706625,-1380.37,0.00026848,2]
[335146409,1723890706635,-500.0,0.00026848,2]
[335146410,1723890706644,-3297.99,0.00026848,2]
[335146411,1723890706654,-565.56622841,0.00026848,2]
[335146412,1723890706664,-2369.1,0.00026848,2]
[335146413,1723890706674,-3259.07,0.00026848,2]
[335146414,1723890706683,-2059.73,0.00026848,2]
[335146415,1723890706693,-558.53,0.00026848,2]
[335146416,1723890706704,-1089.27,0.00026848,2]
[335146417,1723890706715,-500.0,0.00026848,2]
[335146418,1723890706725,-4118.73,0.00026848,2]
[335146419,1723890706735,-537.86,0.00026848,2]
[335146420,1723890706745,-500.0,0.00026848,2]
[335146421,1723890706755,-500.0,0.00026849,2]
[335146422,1723890706765,-500.0,0.00026849,2]
[335146423,1723890706775,-500.0,0.00026849,2]
[335146424,1723890706786,-500.0,0.00026849,2]
[335146425,1723890706795,-575.75,0.00026849,2]
[335146426,1723890706805,-504.56181832,0.00026849,2]
[335146427,1723890706815,-528.48,0.00026849,2]
[335146428,1723890706825,-500.0,0.00026849,2]
[335146429,1723890706835,-500.0,0.00026849,2]
[335146430,1723890706844,-885.91,0.00026849,2]
[335146431,1723890706854,-369.84518074,0.00026849,2]
[335146432,1723890706863,-404.84800211,0.00026849,2]
[335146433,1723890706873,-500.0,0.00026849,2]
[335146434,1723890706883,-642.6,0.00026849,2]
[335146435,1723890706893,-529.2,0.00026849,2]
[335146436,1723890706905,-500.0,0.00026849,2]
[335146437,1723890706916,-3128.21,0.00026849,2]
[335146438,1723890706927,-500.0,0.00026849,2]
[335146439,1723890706938,-500.55,0.00026849,2]
[335146440,1723890706949,-229.36116087,0.00026849,2]
[335146441,1723890706960,-1197.09,0.00026849,2]
[335146442,1723890706971,-663.25,0.00026849,2]
[335146443,1723890706982,-553.57,0.00026849,2]
[335146444,1723890706993,-500.0,0.00026849,2]
[335146445,1723890707003,-833.32,0.00026849,2]
[335146446,1723890707012,-593.58,0.00026849,2]
[335146447,1723890707023,-635.22,0.00026849,2]
[335146448,1723890707033,-500.0,0.00026849,2]
[335146449,1723890707047,-1678.22,0.00026849,2]
[335146450,1723890707061,-500.0,0.00026849,2]
[335146451,1723890707072,-523.73,0.00026849,2]
[335146452,1723890707084,-500.0,0.00026849,2]
[335146453,1723890707096,-929.06,0.00026849,2]
[335146454,1723890707108,-500.0,0.00026849,2]
[335146455,1723890707118,-500.0,0.00026849,2]
[335146456,1723890707131,-500.0,0.00026849,2]
[335146457,1723890707143,-5055.53,0.00026849,2]
[335146458,1723890707155,-726.16,0.00026849,2]
[335146459,1723890707167,-651.69,0.00026849,2]
[335146460,1723890707179,-1917.36,0.00026849,2]
[335146461,1723890707189,-500.0,0.00026849,2]
[335146462,1723890707199,-500.0,0.00026849,2]
[335146463,1723890707209,-785.84,0.00026849,2]
[335146464,1723890707219,-542.57,0.00026849,2]
[335146465,1723890707230,-501.64,0.00026849,2]
[335146466,1723890707242,-1010.89,0.00026849,2]
[335146467,1723890707252,-530.09,0.00026849,2]
[335146468,1723890707265,-605.21,0.00026849,2]
[335146469,1723890707277,-751.83,0.00026849,2]
[335146470,1723890707289,-500.0,0.00026849,2]
[335146471,1723890707301,-1556.4,0.00026849,2]
[335146472,1723890707312,-500.23,0.00026849,2]
[335146473,1723890707322,-752.59,0.00026849,2]
[335146474,1723890707333,-611.43,0.00026849,2]
[335146475,1723890707344,-500.0,0.00026849,2]
[335146476,1723890707355,-668.57,0.00026849,2]
[335146477,1723890707365,-500.0,0.00026849,2]
[335146478,1723890707376,-842.04,0.00026849,2]
[335146479,1723890707387,-794.65,0.00026849,2]
[335146480,1723890707396,-500.0,0.00026849,2]
[335146481,1723890707406,-533.77,0.00026849,2]
[335146482,1723890707416,-545.57,0.00026849,2]
[335146483,1723890707425,-588.4,0.00026849,2]
[335146484,1723890707436,-618.32,0.00026849,2]
[335146485,1723890707445,-500.0,0.00026849,2]
[335146486,1723890707463,-508.22252252,0.00026849,2]
[335146487,1723890707473,-500.28,0.00026849,2]
[335146488,1723890707482,-885.0,0.00026849,2]
[335146489,1723890707492,-864.62,0.00026849,2]
[335146490,1723890707502,-514.86,0.00026849,2]
[335146491,1723890707512,-553.37,0.00026849,2]
[335146492,1723890707521,-693.53,0.00026849,2]
[335146493,1723890707531,-619.18,0.00026849,2]
[335146494,1723890707541,-1400.99,0.00026849,2]
[335146495,1723890707551,-1038.37,0.00026849,2]
[335146496,1723890707561,-1018.27,0.00026849,2]
[335146497,1723890707571,-500.0,0.00026849,2]
[335146498,1723890707581,-517.68,0.00026849,2]
[335146499,1723890707591,-530.93,0.00026849,2]
[335146500,1723890707601,-655.89,0.00026849,2]
[335146501,1723890707611,-591.89,0.00026849,2]
[335146502,1723890707621,-500.0,0.00026849,2]
[335146503,1723890707631,-1232.8,0.00026849,2]
[335146504,1723890707641,-500.0,0.00026849,2]
[335146505,1723890707651,-534.87753656,0.00026849,2]
[335146506,1723890707661,-543.94,0.00026849,2]
[335146507,1723890707671,-571.25,0.00026849,2]
[335146508,1723890707681,-504.48306092,0.00026849,2]
[335146509,1723890707690,-503.76,0.00026849,2]
[335146510,1723890707700,-725.37,0.00026849,2]
[335146511,1723890707710,-500.0,0.00026849,2]
[335146512,1723890707720,-582.58,0.00026849,2]
[335146513,1723890707729,-739.32,0.00026849,2]
[335146514,1723890707738,-1438.68,0.00026849,2]
[335146515,1723890707749,-769.77,0.00026849,2]
[335146516,1723890707759,-2248.55,0.00026849,2]
[335146517,1723890707769,-657.64,0.00026849,2]
[335146518,1723890707778,-590.2,0.00026849,2]
[335146519,1723890707789,-788.03,0.00026849,2]
[335146520,1723890707798,-2904.2,0.00026849,2]
[335146521,1723890707807,-500.0,0.00026849,2]
[335146522,1723890707818,-500.0,0.00026849,2]
[335146523,1723890707827,-504.56894001,0.00026849,2]
[335146524,1723890707837,-737.6,0.00026849,2]
[335146525,1723890707847,-1067.82,0.00026849,2]
[335146526,1723890707858,-22187.11,0.00026849,2]
[335146527,1723890707867,-6948.85,0.00026849,2]
[335146528,1723890707878,-668.08,0.00026849,2]
[335146529,1723890707888,-1369.92,0.00026849,2]
[335146530,1723890707898,-1067.8,0.00026849,2]
[335146531,1723890707908,-2952.04,0.00026849,2]
[335146532,1723890707918,-1761.64,0.00026849,2]
[335146533,1723890707928,-1088.19,0.00026849,2]
[335146534,1723890707938,-616.8,0.00026849,2]
[335146535,1723890707948,-1664.5,0.00026849,2]
[335146536,1723890707958,-500.0,0.00026849,2]
[335146537,1723890707967,-869.36,0.00026849,2]
[335146538,1723890707977,-1108.77,0.00026849,2]
[335146539,1723890707987,-905.39,0.00026849,2]
[335146540,1723890707997,-500.0,0.00026849,2]
[335146541,1723890708010,-2520.02,0.00026849,2]
[335146542,1723890708020,-569.78,0.00026849,2]
[335146543,1723890708030,-3853.14,0.00026849,2]
[335146544,1723890708041,-2333.05,0.00026849,2]
[335146545,1723890708054,-679.93,0.00026849,2]
[335146546,1723890708064,-462.32098274,0.00026849,2]
[335146547,1723890708073,-521.59,0.00026849,2]
[335146548,1723890708083,-2770.69,0.00026849,2]
[335146549,1723890708095,-692.79,0.00026849,2]
[335146550,1723890708106,-500.28,0.00026849,2]
[335146551,1723890708116,-500.0,0.00026849,2]
[335146552,1723890708130,-1389.6,0.00026849,2]
[335146553,1723890708141,-321.53739048,0.00026849,2]
[335146554,1723890708151,-4570.81,0.00026849,2]
[335146555,1723890708161,-780.69,0.00026878,2]
[335146556,1723890708171,-780.69,0.00026878,2]
[335146557,1723890708182,-302.52425053,0.00026894,2]
[335146558,1723890708192,-780.69,0.00026898,2]
[335146559,1723890708203,-780.69,0.00026898,2]
[335146560,1723890708213,-400.0,0.000269,2]
[335146561,1723890708223,-400.0,0.0002691,2]
[335146562,1723890708234,-400.0,0.0002691,2]
[335146563,1723890708245,-400.0,0.0002691,2]
[335146564,1723890708256,-400.0,0.0002691,2]
[335146565,1723890708267,-378.12087349,0.00026946,2]
[335146566,1723890708278,-600.0,0.00026946,2]
[335146567,1723890708288,-20000.0,0.00026958,2]
[335146568,1723890708299,-500.0,0.00026989,2]
[335146569,1723890708309,-500.0,0.00026989,2]
[335146570,1723890708318,-821.0,0.00026989,2]
[335146571,1723890708328,-500.0,0.00026989,2]
[335146572,1723890708339,-150.01,0.00026998,2]
[335146573,1723890708349,-2995.80978526,0.00026998,2]
[335146574,1723890708360,-780.69,0.00026999,2]
[335146575,1723890708369,-780.69,0.00026999,2]
[335146576,1723890708380,-780.69,0.00026999,2]
[335146577,1723890708390,-780.69,0.00026999,2]
[335146578,1723890708402,-780.69,0.00026999,2]
[335146579,1723890708413,-780.69,0.00026999,2]
[335146580,1723890708422,-780.69,0.00026999,2]
[335146581,1723890708432,-780.85216168,0.00026999,2]
[335146582,1723890708441,-500.0,0.00026999,2]
[335146583,1723890708451,-500.0,0.00026999,2]
[335146584,1723890708461,-359.22238801,0.00026999,2]
[335146585,1723890708471,-500.0,0.00026999,2]
[335146586,1723890708480,-500.0,0.00026999,2]
[335146587,1723890708491,-500.0,0.00026999,2]
[335146588,1723890708501,-500.0,0.00026999,2]
[335146589,1723890708511,-500.0,0.00026999,2]
[335146590,1723890708521,-511.22725887,0.00026999,2]
[335146591,1723890708530,-821.0,0.00026999,2]
[335146592,1723890708540,-821.0,0.00026999,2]
[335146593,1723890708551,-821.0,0.00026999,2]
[335146594,1723890708561,-821.0,0.00026999,2]
[335146595,1723890708571,-821.0,0.00026999,2]
[335146596,1723890708582,-821.016219,0.00026999,2]
[335146597,1723890708594,-500.0,0.00026999,2]